fUST/lending_fUST_20251213
["ID","MTS","AMOUNT","RATE_DAILY","PERIOD"]
[398417712,1765629043586,-514.84070869,0.00024574,2]
[398417713,1765629043595,-222.0,0.00024574,2]
[398417714,1765629043605,-2773.56790519,0.00024574,2]
[398417715,1765629043615,-47.75298091,0.00024574,2]
[398417716,1765629043626,-129.24701909,0.00024574,2]
[398417717,1765629043636,-1160.0346826,0.00024597,2]
[398417718,1765629043645,-3810.5065454,0.00024637,10]
[398417719,1765629043693,-388.44326117,0.00024637,10]
[398417720,1765629043773,-476.59,0.00024637,10]
[398417721,1765629043784,-1158.63077934,0.00024637,10]
[398417981,1765629483803,197.64,9.99e-05,3]
[398418029,1765630034112,-236.77682547,0.00022924,2]
[398418075,1765630231632,-203.58073581,0.00017115,2]
[398418077,1765630231642,-97.22560704,0.00017115,2]
[398418082,1765630231686,-573.77439296,0.00017115,2]
[398418083,1765630231696,-201.36995276,0.00023425,2]
[398418084,1765630231707,-136.93699474,0.00023492,4]
[398418309,1765630241586,-161.62600526,0.00023492,4]
[398418311,1765630241595,-1160.0346826,0.00023689,2]
[398418313,1765630241606,-1295.2291999,0.00023692,2]
[398418315,1765630241615,-1200.0,0.00023998,2]
[398418317,1765630241624,-1200.0,0.00023999,2]
[398418319,1765630241634,-300.0,0.00023999,2]
[398418321,1765630241644,-500.0,0.00023999,2]
[398418323,1765630241654,-500.0,0.00023999,2]
[398418325,1765630241663,-500.0,0.00023999,2]
[398418327,1765630241673,-500.0,0.00023999,2]
[398418329,1765630241683,-500.0,0.00023999,2]
[398418331,1765630241693,-500.0,0.00023999,2]
[398418333,1765630241702,-500.0,0.00023999,2]
[398418335,1765630241711,-500.0,0.00023999,2]
[398418337,1765630241721,-466.75627261,0.00023999,2]
[398418339,1765630241730,-500.0,0.00023999,2]
[398418341,1765630241740,-500.0,0.00023999,2]
[398418343,1765630241749,-500.0,0.00023999,2]
[398418345,1765630241758,-500.0,0.00023999,2]
[398418347,1765630241768,-500.0,0.00023999,2]
[398418350,1765630241779,-500.0,0.00023999,2]
[398418351,1765630241788,-500.0,0.00023999,2]
[398418353,1765630241798,-500.0,0.00023999,2]
[398418355,1765630241807,-500.0,0.00023999,2]
[398418358,1765630241817,-500.0,0.00023999,2]
[398418360,1765630241826,-500.0,0.00023999,2]
[398418362,1765630241835,-189.96006934,0.00023999,2]
[398418363,1765630241844,-500.0,0.00023999,2]
[398418365,1765630241854,-500.0,0.00023999,2]
[398418368,1765630241863,-500.0,0.00023999,2]
[398418370,1765630241873,-500.0,0.00023999,2]
[398418372,1765630241882,-500.0,0.00023999,2]
[398418374,1765630241892,-500.0,0.00023999,2]
[398418375,1765630241901,-500.0,0.00023999,2]
[398418378,1765630241910,-500.0,0.00023999,2]
[398418380,1765630241921,-500.0,0.00023999,2]
[398418382,1765630241931,-500.0,0.00023999,2]
[398418384,1765630241940,-500.0,0.00023999,2]
[398418386,1765630241949,-500.0,0.00023999,2]
[398418388,1765630241958,-197.53871966,0.00023999,2]
[398418390,1765630241968,-500.0,0.00023999,2]
[398418391,1765630241977,-500.0,0.00023999,2]
[398418394,1765630241987,-500.0,0.00023999,2]
[398418396,1765630241998,-500.0,0.00023999,2]
[398418398,1765630242012,-500.0,0.00023999,2]
[398418400,1765630242021,-500.0,0.00023999,2]
[398418402,1765630242030,-16500.0,0.00024,2]
[398418403,1765630242040,-180.0,0.0002411,5]
[398418406,1765630242051,-161.96581935,0.00024427,2]
[398418408,1765630242060,-26588.2,0.00024527,10]
[398418410,1765630242070,-36536.04729379,0.00024527,2]
[398418412,1765630242079,-222.0,0.00024532,2]
[398418414,1765630242089,-177.0,0.00024532,2]
[398418416,1765630242098,-514.84070869,0.00024532,2]
[398418418,1765630242109,-2773.56790519,0.00024532,2]
[398418420,1765630242119,-31905.83,0.00024537,10]
[398418422,1765630242128,-140746.51234134,0.00024547,2]
[398418486,1765630245698,-17880.20240103,0.00024517,10]
[398418515,1765630812948,-343.282166,0.00013699,2]
[398418516,1765630812969,-317.77186678,0.00013699,2]
[398418518,1765630820031,-195.97307753,0.00013699,2]
[398418521,1765630825127,-101.25505569,0.00013699,2]
[398418535,1765630870879,-150.0,0.00010338,2]
[398418536,1765630871157,-150.0,0.00011278,2]
[398418537,1765630871185,-76.32259686,0.00012218,2]
[398418542,1765630885780,-73.67740314,0.00012218,2]
[398418543,1765630900971,-150.0,0.00013158,2]
[398418544,1765630931650,-150.0,0.00010526,2]
[398418590,1765631203111,-313.72046547,0.00020187,2]
[398418591,1765631235092,-29.56170053,0.00020187,2]
[398418592,1765631235113,-456.07320595,0.00020683,3]
[398418593,1765631235134,-150.0,0.0002087,2]
[398418594,1765631235162,-177.0,0.0002287,2]
[398418595,1765631235187,-282.96364319,0.00022917,2]
[398418596,1765631235206,-23.84708436,0.00023999,2]
[398418602,1765631283339,152.64,9.99e-05,3]
[398418653,1765631431885,-183.31943632,0.0001707,2]
[398418654,1765631431895,-670.0,0.0001707,2]
[398418655,1765631431905,-500.0,0.0002,10]
[398418657,1765631431915,-346.8276742,0.00023435,30]
[398418659,1765631431926,-653.1723258,0.00023435,30]
[398418661,1765631431936,-338.61883061,0.00023999,2]
[398418663,1765631431946,-186.42019844,0.00023999,2]
[398418665,1765631431955,-643.73946499,0.00023999,2]
[398418667,1765631431964,-161.96581935,0.00024337,2]
[398418669,1765631431973,-222.0,0.00024432,2]
[398418671,1765631431983,-46.70436437,0.00024432,2]
[398418673,1765631431996,-130.29563563,0.00024432,2]
[398418675,1765631432005,-192.70436437,0.00024432,2]
[398418678,1765631432023,-322.13634432,0.00024432,2]
[398418680,1765631432033,-152.82136649,0.00024433,2]
[398418682,1765631432045,-147.17863351,0.00024433,2]
[398418684,1765631432054,-1200.0,0.00024433,2]
[398418686,1765631432063,-2.06816949,0.00024434,2]
[398418688,1765631437944,-978.93183051,0.00024434,2]
[398418689,1765631437953,-238.85,0.00024436,7]
[398418690,1765631437963,-500.0,0.00024436,2]
[398418691,1765631437972,-500.0,0.00024436,2]
[398418692,1765631437982,-298.88445215,0.00024436,2]
[398418693,1765631437991,-493.19750467,0.00024436,2]
[398418694,1765631437999,-218.16408591,0.00024436,2]
[398418695,1765631438022,-32.25620977,0.00024436,2]
[398418696,1765631438031,-500.0,0.00024436,2]
[398418697,1765631438040,-500.0,0.00024436,2]
[398418698,1765631438049,-500.0,0.00024436,2]
[398418699,1765631438058,-500.0,0.00024436,2]
[398418700,1765631438067,-500.0,0.00024436,2]
[398418701,1765631438077,-248.32425318,0.00024446,2]
[398418702,1765631438087,-308.94097648,0.00024447,2]
[398418885,1765631443322,-352.62903834,0.00024437,10]
[398418888,1765631443346,-660.112334,0.00024437,10]
[398418902,1765631446005,-10084.93862766,0.00024437,10]
[398418903,1765631446016,-49999.74807091,0.00024447,2]
[398418904,1765631446028,-25197.01878894,0.00024447,2]
[398419036,1765632391310,10000.0,0.00019,120]
[398419050,1765632425008,5131.83289944,0.0001,2]
[398419053,1765632430083,-384.33100379,0.00023519,2]
[398419055,1765632432117,-305.28955121,0.00023519,2]
[398419056,1765632432138,-150.0,0.00023876,2]
[398419057,1765632432161,-161.96581935,0.00024233,2]
[398419058,1765632432184,-388.13305608,0.00024319,2]
[398419059,1765632432205,-62.11762467,0.0002432,10]
[398419286,1765632631984,-161.96581935,0.0002422,2]
[398419288,1765632631995,-206.66105864,0.0002422,2]
[398419329,1765632633433,193.25166986,8.47e-05,2]
[398419432,1765632903163,569.207,9.45e-05,2]
[398419509,1765633102931,177.15824943,8.47e-05,2]
[398419582,1765633559027,-303.72628977,0.00013699,2]
[398419583,1765633560588,-24.29889323,0.00013699,2]
[398419584,1765633560616,-249.37850991,0.00020187,2]
[398419585,1765633573310,150.0,9.247e-05,2]
[398419586,1765633573525,-78.64667309,0.00020187,2]
[398419587,1765633573550,-75.76301443,0.00023746,4]
[398419588,1765633573817,150.0,0.00010088,2]
[398419589,1765633574226,150.0,0.00010928,2]
[398419590,1765633575658,-150.0,0.00011769,2]
[398419591,1765633575684,-124.27918969,0.00023746,4]
[398419593,1765633620717,-24.80479588,0.00023746,4]
[398419594,1765633620743,-145.22277894,0.00023933,2]
[398419595,1765633626104,-4.77722106,0.00023933,2]
[398419596,1765633626124,-161.96581935,0.00024115,2]
[398419597,1765633626146,-70.03378506,0.00024119,2]
[398419605,1765633639743,150.0,9.357e-05,2]
[398419606,1765633640283,150.0,0.00010207,2]
[398419607,1765633640765,150.0,0.00011058,2]
[398419608,1765633641217,-150.0,0.00011908,2]
[398419609,1765633678000,-229.96621494,0.00024119,2]
[398419610,1765633678023,-94.94101191,0.00024119,2]
[398419611,1765633706451,150.0,9.528e-05,2]
[398419612,1765633707050,150.0,0.00010394,2]
[398419613,1765633797967,-286.01589392,0.00024119,2]
[398419614,1765633797990,-146.44562067,0.00024119,2]
[398419615,1765633800393,-50.84307951,0.00024119,2]
[398419616,1765633800419,-368.91162878,0.00024119,2]
[398419617,1765633813492,-158.39044696,0.00024118,2]
[398419618,1765633814864,-141.60955304,0.00024118,2]
[398419619,1765633814887,-31.74145611,0.00024118,2]
[398419620,1765633818451,-164.44899972,0.00024118,2]
[398419649,1765633832183,-103.80954417,0.00024118,2]
[398419652,1765633832194,-801.0,0.00024118,2]
[398419654,1765633832204,-175.42984075,0.00024118,2]
[398419656,1765633832217,-124.57015925,0.00024118,2]
[398419658,1765633832228,-387.52584075,0.00024118,2]
[398419660,1765633832240,-812.47415925,0.00024118,2]
[398419662,1765633832251,-131.08837122,0.00024119,2]
[398419665,1765633832261,-500.0,0.00024119,2]
[398419667,1765633832271,-500.0,0.00024119,2]
[398419669,1765633832282,-500.0,0.00024119,2]
[398419671,1765633832292,-500.0,0.00024119,2]
[398419673,1765633832304,-276.96963024,0.00024119,2]
[398419675,1765633832315,-500.0,0.00024119,2]
[398419677,1765633832325,-636.47839002,0.00024119,2]
[398419679,1765633832335,-500.0,0.00024119,2]
[398419681,1765633832346,-500.0,0.00024119,2]
[398419683,1765633832356,-500.0,0.00024119,2]
[398419685,1765633832367,-500.0,0.00024119,2]
[398419688,1765633832378,-500.0,0.00024119,2]
[398419690,1765633832391,-500.0,0.00024119,2]
[398419692,1765633832402,-195.69049333,0.00024119,2]
[398419694,1765633832412,-500.0,0.00024119,2]
[398419696,1765633832422,-500.0,0.00024119,2]
[398419698,1765633832432,-195.15626856,0.00024119,2]
[398419700,1765633832443,-500.0,0.00024119,2]
[398419702,1765633832453,-500.0,0.00024119,2]
[398419704,1765633832463,-500.0,0.00024119,2]
[398419707,1765633832474,-500.0,0.00024119,2]
[398419709,1765633832484,-500.0,0.00024119,2]
[398419710,1765633832495,-500.0,0.00024119,2]
[398419711,1765633832506,-500.0,0.00024119,2]
[398419712,1765633832517,-500.0,0.00024119,2]
[398419713,1765633832528,-500.0,0.00024119,2]
[398419714,1765633832539,-500.0,0.00024119,2]
[398419715,1765633832549,-500.0,0.00024119,2]
[398419716,1765633832560,-500.0,0.00024119,2]
[398419717,1765633832572,-500.0,0.00024119,2]
[398419718,1765633832582,-500.0,0.00024119,2]
[398419719,1765633832593,-500.0,0.00024119,2]
[398419720,1765633832604,-500.0,0.00024119,2]
[398419721,1765633832615,-55.05898809,0.00024119,2]
[398419722,1765633832627,-17316.83,0.0002412,10]
[398419723,1765633832637,-300.0,0.00024128,2]
[398419724,1765633832648,-297.19971606,0.00024129,2]
[398419725,1765633832658,-165283.05398323,0.0002413,2]
[398419852,1765633837182,150.0,9.561e-05,2]
[398419853,1765633837663,150.0,0.0001043,2]
[398419866,1765633838078,150.0,0.00011299,2]
[398419917,1765633838586,150.0,0.00012169,2]
[398419962,1765633839053,150.0,0.00013038,2]
[398419989,1765633839556,150.0,0.00013907,2]
[398420117,1765633840948,-3e-08,0.00014776,2]
[398420129,1765633843175,-149.99999997,0.00014776,2]
[398420130,1765633843201,-37.37621786,0.00015645,2]
[398420148,1765633902997,-112.62378214,0.00015645,2]
[398420149,1765633903023,-436.67036973,0.0002412,10]
[398420150,1765633905061,-229.88245979,0.0002412,10]
[398420151,1765633905282,150.0,0.00011077,2]
[398420152,1765633905901,150.0,0.00012084,2]
[398420153,1765633906290,150.0,0.00013091,2]
[398420154,1765633906788,150.0,0.00014098,2]
[398420155,1765633917967,-150.0,0.00015105,2]
[398420156,1765633917990,-482.16683377,0.0002412,10]
[398420157,1765633920513,-252.73862834,0.0002412,10]
[398420158,1765633932988,-163.19541236,0.0002412,10]
[398420159,1765633935600,-269.50621758,0.0002412,10]
[398420160,1765633937659,-226.56316623,0.0002412,10]
[398420161,1765633940204,-166.21,0.0002412,10]
[398420162,1765633972513,150.0,0.0001108,2]
[398420163,1765633973063,150.0,0.00012087,2]
[398420164,1765633973600,150.0,0.00013094,2]
[398420165,1765633974083,150.0,0.00014102,2]
[398420166,1765633978115,-150.6,0.00015109,2]
[398420167,1765633978143,-25.96232448,0.00016116,2]
[398420168,1765633981244,-154.76767552,0.00016116,2]
[398420169,1765633981273,-153.88751175,0.00017123,2]
[398420170,1765633982791,-56.96248825,0.00017123,2]
[398420171,1765633982820,-141.38217561,0.00018131,2]
[398420172,1765633985879,-99.58782439,0.00018131,2]
[398420173,1765633985906,-90.40433616,0.00019138,2]
[398420174,1765633987513,-180.68566384,0.00019138,2]
[398420175,1765633987543,-58.35683407,0.00020145,2]
[398420176,1765633989972,-161.52676307,0.00020145,2]
[398420177,1765634003647,-162.62857847,0.00017857,2]
[398420208,1765634044777,150.0,9.939e-05,2]
[398420209,1765634045250,150.0,0.00010842,2]
[398420210,1765634045738,150.0,0.00011746,2]
[398420211,1765634046218,150.0,0.00012649,2]
[398420212,1765634046712,150.0,0.00013553,2]
[398420213,1765634047493,150.0,0.00014456,2]
[398420216,1765634052962,-171.88,0.0001536,2]
[398420217,1765634052988,-32.09934678,0.00016263,2]
[398420218,1765634056725,-164.33065322,0.00016263,2]
[398420219,1765634056751,-14.94300728,0.00017167,2]
[398420220,1765634058753,-206.04699272,0.00017167,2]
[398420221,1765634058775,-14.88398746,0.00017857,2]
[398420222,1765634058802,-30.99767846,0.0001807,2]
[398420223,1765634061872,-203.36951046,0.0001807,2]
[398420226,1765634115547,150.0,0.00010071,2]
[398420227,1765634116131,150.0,0.00010987,2]
[398420228,1765634116680,150.0,0.00011902,2]
[398420229,1765634117168,150.0,0.00012818,2]
[398420230,1765634117648,150.0,0.00013733,2]
[398420231,1765634157990,-150.0,0.00014649,2]
[398420232,1765634158013,-71.34739681,0.00024116,2]
[398420233,1765634160068,-150.65260319,0.00024116,2]
[398420234,1765634160091,-60.25792211,0.0002412,10]
[398420235,1765634183702,150.0,9.917e-05,2]
[398420236,1765634184223,150.0,0.00010819,2]
[398420237,1765634185101,150.0,0.0001172,2]
[398420238,1765634202963,-250.0,0.00019356,2]
[398420239,1765634202989,-403.43390879,0.0002412,10]
[398420240,1765634232970,-406.92170384,0.0002412,10]
[398420241,1765634250124,150.0,9.996e-05,2]
[398420242,1765634250639,150.0,0.00010905,2]
[398420243,1765634251117,150.0,0.00011813,2]
[398420244,1765634251518,150.0,0.00012722,2]
[398420245,1765634251951,150.0,0.00013631,2]
[398420246,1765634252111,-93.07829616,0.0002412,10]
[398420247,1765634252135,-336.44795493,0.0002412,10]
[398420248,1765634255897,-150.0,0.00014539,2]
[398420249,1765634255922,-150.0,0.00015448,2]
[398420250,1765634255945,-4.05970026,0.0002412,10]
[398420251,1765634318722,150.0,9.935e-05,2]
[398420252,1765634319124,150.0,0.00010839,2]
[398420253,1765634319555,150.0,0.00011742,2]
[398420254,1765634319993,150.0,0.00012645,2]
[398420255,1765634320482,150.0,0.00013548,2]
[398420256,1765634413540,-474.23362074,0.00024119,2]
[398420257,1765634416731,-47.4504091,0.00024119,2]
[398420258,1765634416754,-135.6612891,0.00024119,2]
[398420259,1765634418223,-256.82605754,0.00024119,2]
[398420262,1765634420718,-107.51265336,0.00024119,2]
[398420263,1765634420747,-87.67590815,0.00024119,2]
[398420264,1765634451405,150.0,9.935e-05,2]
[398420265,1765634451919,150.0,0.00010839,2]
[398420266,1765634452408,150.0,0.00011742,2]
[398420267,1765634452930,150.0,0.00012645,2]
[398420268,1765634453331,150.0,0.00013548,2]
[398420269,1765634453876,150.0,0.00014451,2]
[398420270,1765634458488,-150.0,0.00015355,2]
[398420271,1765634458512,-134.98217234,0.00016258,2]
[398420278,1765634502974,-15.01782766,0.00016258,2]
[398420279,1765634502999,-396.26061697,0.00024119,2]
[398420280,1765634505419,-167.74938303,0.00024115,6]
[398420281,1765634520277,150.0,9.917e-05,2]
[398420282,1765634522210,150.0,0.00010818,2]
[398420283,1765634522484,150.0,0.0001172,2]
[398420284,1765634522890,150.0,0.00012621,2]
[398420285,1765634523417,150.0,0.00013523,2]
[398420286,1765634523620,-12.12861697,0.00024115,6]
[398420287,1765634523645,-93.36241858,0.00024119,2]
[398420288,1765634523668,-145.02795511,0.00024119,2]
[398420289,1765634587415,150.0,0.00010068,2]
[398420290,1765634587805,150.0,0.00010983,2]
[398420297,1765634608587,-265.48922329,0.00023358,30]
[398420298,1765634611092,-167.81956946,0.00023358,30]
[398420299,1765634612734,-294.37054055,0.00023358,30]
[398420300,1765634637995,-272.3206667,0.00023358,30]
[398420301,1765634638019,-10.68186209,0.00023689,2]
[398420302,1765634651758,150.0,9.915e-05,2]
[398420303,1765634652152,150.0,0.00010817,2]
[398420305,1765634727963,-139.31813791,0.00023689,2]
[398420306,1765634727987,-40.3275946,0.0002402,10]
[398420307,1765634742971,-219.34304411,0.0002402,10]
[398420308,1765634744519,-151.99883395,0.0002402,10]
[398420309,1765634746700,-331.07613419,0.0002402,10]
[398420310,1765634748174,-152.06412174,0.0002402,10]
[398420311,1765634750660,-151.06190433,0.0002402,10]
[398420312,1765634751802,-234.10469499,0.0002402,10]
[398420313,1765634753318,-423.54762421,0.0002402,10]
[398420314,1765634755919,-300.0,0.0002402,10]
[398420315,1765634758058,-204.44961281,0.0002402,10]
[398420316,1765634759744,-209.39011964,0.0002402,10]
[398420317,1765634761760,-194.72621072,0.0002402,10]
[398420318,1765634764395,-367.98582802,0.0002402,10]
[398420319,1765634765831,-209.691912,0.0002402,10]
[398420320,1765634772991,-177.07489982,0.0002402,10]
[398420321,1765634776585,-186.0151283,0.0002403,2]
[398420322,1765634779208,-1118.88741053,0.0002402,10]
[398420323,1765634782231,-229.09048026,0.0002402,10]
[398420324,1765634784361,-226.71,0.0002402,10]
[398420325,1765634786053,-330.64875629,0.0002402,10]
[398420326,1765634789971,-427.3562062,0.0002402,10]
[398420327,1765634791910,-215.83868254,0.0002402,10]
[398420328,1765634794422,-170.33498569,0.00021694,2]
[398420329,1765634796901,-1.1279862,0.00021694,2]
[398420330,1765634796923,-243.36071901,0.0002402,10]
[398420331,1765634798429,-279.12385035,0.0002402,10]
[398420332,1765634800464,-159.24122081,0.0002402,10]
[398420333,1765634801859,-214.68,0.0002402,10]
[398420334,1765634804571,-406.6437938,0.0002402,10]
[398420336,1765634806478,-188.01006919,0.0002402,10]
[398420337,1765634808028,-316.73877148,0.0002402,10]
[398420338,1765634809580,-284.28394076,0.0002402,10]
[398420339,1765634812730,-151.0,0.0002402,10]
[398420340,1765634814118,-313.72046547,0.0002402,10]
[398420341,1765634814335,-209.20470459,0.0002402,10]
[398420342,1765634815828,-416.21271773,0.0002402,10]
[398420343,1765634818376,-233.84,0.0002402,10]
[398420344,1765634823513,-184.26,0.0002403,2]
[398420345,1765634825613,-236.71399754,0.0002403,2]
[398420346,1765634827768,-169.63592332,0.0002402,10]
[398420347,1765634830351,-214.86638172,0.0002402,10]
[398420348,1765634832223,-1114.25167576,0.0002402,10]
[398420349,1765634832381,-213.89822453,0.0002402,10]
[398420350,1765634861770,150.0,9.972e-05,2]
[398420351,1765634862156,150.0,0.00010878,2]
[398420352,1765634862430,-196.3130334,0.00023544,2]
[398420353,1765634862452,-1.4169666,0.0002402,10]
[398420354,1765634862811,150.0,0.00011785,2]
[398420355,1765634863351,150.0,0.00012691,2]
[398420356,1765634863608,150.0,0.00013598,2]
[398420357,1765634865415,-197.0,0.0002402,10]
[398420359,1765634893060,-213.28600246,0.0002402,10]
[398420360,1765634927467,150.0,0.00011151,2]
[398420361,1765634927882,150.0,0.00012165,2]
[398420362,1765634928244,-269.7846612,0.0002402,10]
[398420363,1765634928709,150.0,0.00013179,2]
[398420364,1765634929115,150.0,0.00014192,2]
[398420366,1765635003134,150.0,0.00010795,2]
[398420367,1765635003533,150.0,0.00011776,2]
[398420368,1765635004010,150.0,0.00012757,2]
[398420369,1765635004492,150.0,0.00013739,2]
[398420401,1765635032454,-150.0,0.0001472,2]
[398420403,1765635032465,-150.0,0.00015701,2]
[398420405,1765635032475,-780.0,0.00023084,2]
[398420407,1765635032485,-9802.4772627,0.00023084,2]
[398420409,1765635032495,-11971.24,0.0002402,10]
[398420411,1765635032505,-104295.43348735,0.0002403,2]
[398420414,1765635032528,-4624.983028,0.0002403,2]
[398420456,1765635038477,-17436.452052,0.0002403,2]
[398420458,1765635038488,-6104.62934326,0.0002403,2]
[398420750,1765635041617,-3e-08,0.0002403,2]
[398420753,1765635041628,-915.52853572,0.0002403,2]
[398420937,1765635043569,-27180.29021146,0.0002403,2]
[398420950,1765635043684,-508.54553003,0.0002403,2]
[398420952,1765635043695,-7737.35533875,0.0002403,2]
[398420954,1765635043706,-7700.63174372,0.0002403,2]
[398421141,1765635046459,-709.6301631,0.0002402,10]
[398421146,1765635046517,-9266.3998369,0.0002402,10]
[398421148,1765635046526,-66272.74952624,0.0002403,2]
[398421763,1765635069280,150.0,9.389e-05,2]
[398421810,1765636031158,-776.0,0.00022874,2]
[398421811,1765636031184,-150.0,0.00022874,2]
[398421812,1765636031209,-146.18061375,0.00023452,3]
[398421813,1765636052079,-58.22138625,0.00023452,3]
[398421814,1765636052098,-161.96581935,0.000239,2]
[398421815,1765636052118,-164.14379819,0.00023916,2]
[398421926,1765636231618,-222.0,0.00023916,2]
[398421928,1765636231627,-797.0,0.00023916,2]
[398421930,1765636231636,-150.0,0.00023916,2]
[398421932,1765636231646,-300.0,0.00023917,2]
[398421934,1765636231654,-130.44867776,0.00023917,2]
[398421937,1765636231673,-169.55132224,0.00023917,2]
[398421939,1765636231682,-342.80008152,0.00023917,2]
[398422043,1765636237594,-857.19991848,0.00023917,2]
[398422045,1765636237608,-277.0,0.00023917,2]
[398422047,1765636237618,-300.0,0.00023917,2]
[398422049,1765636237629,-1200.0,0.00023918,2]
[398422051,1765636237638,-1073.20999457,0.0002392,10]
[398422223,1765636239791,-2365.7872623,0.0002392,10]
[398422255,1765636245696,-161.96581935,0.000239,2]
[398422256,1765636245708,-919.24618065,0.0002392,10]
[398422258,1765636279662,150.0,9.183e-05,2]
[398422259,1765636280204,150.0,0.00010018,2]
[398422260,1765636282571,312.386773,0.00013699,2]
[398422266,1765636344618,150.0,0.00011503,2]
[398422267,1765636345007,150.0,0.00012548,2]
[398422268,1765636345465,150.0,0.00013594,2]
[398422300,1765636412157,150.0,9.254e-05,2]
[398422301,1765636412575,150.0,0.00010095,2]
[398422302,1765636412986,150.0,0.00010936,2]
[398422318,1765636477304,150.0,9.134e-05,2]
[398422319,1765636477726,150.0,9.964e-05,2]
[398422320,1765636541686,150.0,9.2e-05,2]
[398422321,1765636542088,150.0,0.00010037,2]
[398422322,1765636542484,150.0,0.00010873,2]
[398422511,1765636874517,295637.613227,0.000145,2]
[398422515,1765636883884,-968.64446883,0.000145,2]
[398422517,1765636885286,-403.43390879,0.000145,2]
[398422518,1765636886727,-436.67036973,0.000145,2]
[398422521,1765636889250,-166.21,0.000145,2]
[398422522,1765636892491,-252.73862834,0.000145,2]
[398422525,1765636893947,-226.56316623,0.000145,2]
[398422526,1765636895440,-229.88245979,0.000145,2]
[398422527,1765636897479,-269.50621758,0.000145,2]
[398422528,1765636899639,-227.51303473,0.000145,2]
[398422529,1765636902652,-406.92170384,0.000145,2]
[398422530,1765636904086,-188.01930807,0.000145,2]
[398422543,1765636906609,-280.80929445,0.000145,2]
[398422544,1765636908484,-474.23362074,0.000145,2]
[398422556,1765636911272,-234.12152882,0.000145,2]
[398422557,1765636913241,-541.28857208,0.000145,2]
[398422562,1765636916947,-229.02370768,0.000145,2]
[398422564,1765636919969,-393.52854728,0.000145,2]
[398422565,1765636922066,-304.27646664,0.000145,2]
[398422566,1765636924725,-180.0,0.00014499,2]
[398422567,1765636924749,-188.91162878,0.000145,2]
[398422568,1765636926910,-190.13190307,0.000145,2]
[398422569,1765636929025,-164.44899972,0.000145,2]
[398422570,1765636931683,-212.95694985,0.000145,2]
[398422571,1765636935723,-318.40198622,0.000145,2]
[398422572,1765636937734,-196.38861697,0.000145,2]
[398422573,1765636939628,-236.71399754,0.000145,2]
[398422574,1765636941638,-186.01512833,0.000145,2]
[398422575,1765636945631,-300.0,0.000145,2]
[398422576,1765636947130,-416.21271773,0.000145,2]
[398422577,1765636950241,-215.83868254,0.000145,2]
[398422578,1765636952324,-406.6437938,0.000145,2]
[398422579,1765636953815,-428.7731728,0.000145,2]
[398422580,1765636956103,-208.03980124,0.00014499,2]
[398422581,1765636956127,-122.60895505,0.000145,2]
[398422582,1765636957487,-214.86638172,0.000145,2]
[398422583,1765636960161,-194.72621072,0.00014499,2]
[398422584,1765636962212,-209.20470459,0.00014499,2]
[398422585,1765636964079,-96.06908469,0.00014499,2]
[398422586,1765636964108,-147.29163432,0.00014499,2]
[398422591,1765636966657,-197.0,0.00014499,2]
[398422593,1765636968629,-155.70836568,0.00014499,2]
[398422594,1765636968654,-48.74124713,0.00014499,2]
[398422596,1765636970128,-269.7846612,0.00014499,2]
[398422599,1765636972115,-146.90609145,0.00014499,2]
[398422600,1765636972137,-72.43695266,0.00014499,2]
[398422601,1765636975358,-213.89822453,0.00014499,2]